fUSD/lending_fUSD_20260116
["ID","MTS","AMOUNT","RATE_DAILY","PERIOD"]
[402204569,1768597843500,-595.37131296,0.00017647,2]
[402204570,1768597843510,-500.0,0.00017666,2]
[402204571,1768597843520,-500.0,0.00017666,2]
[402204572,1768597843529,-500.0,0.00017666,2]
[402204573,1768597843539,-500.0,0.00017666,2]
[402204574,1768597843549,-500.0,0.00017666,2]
[402204575,1768597843558,-150.0,0.00017666,2]
[402204576,1768597843567,-200.0,0.00017666,2]
[402204577,1768597843576,-500.0,0.00017666,2]
[402204578,1768597843586,-500.0,0.00017666,2]
[402204579,1768597843595,-500.0,0.00017666,2]
[402204580,1768597843605,-500.0,0.00017666,2]
[402204581,1768597843614,-500.0,0.00017666,2]
[402204582,1768597843624,-500.0,0.00017666,2]
[402204583,1768597843633,-500.0,0.00017666,2]
[402204584,1768597843643,-500.0,0.00017666,2]
[402204585,1768597843652,-1000.0,0.00017672,2]
[402204586,1768597843661,-1000.0,0.00017698,2]
[402204587,1768597843670,-200.0,0.000177,6]
[402204588,1768597843680,-150.0,0.00017718,2]
[402204589,1768597843689,-500.0,0.00017721,2]
[402204590,1768597843698,-500.0,0.00017721,2]
[402204591,1768597843707,-500.0,0.00017721,2]
[402204592,1768597843717,-152.0,0.00017721,2]
[402204593,1768597843726,-500.0,0.00017721,2]
[402204594,1768597843735,-181.5474637,0.00017721,2]
[402204595,1768597843746,-371.65500783,0.00017721,2]
[402204596,1768597843755,-350.0,0.00017721,2]
[402204597,1768597843765,-500.0,0.00017721,2]
[402204598,1768597843774,-500.0,0.00017721,2]
[402204599,1768597843784,-500.0,0.00017721,2]
[402204600,1768597843793,-500.0,0.00017721,2]
[402204603,1768597843802,-500.0,0.00017721,2]
[402204606,1768597843812,-500.0,0.00017721,2]
[402204608,1768597843822,-150.99,0.00017728,2]
[402204610,1768597843832,-9946.01,0.00017728,2]
[402204611,1768597843841,-999.99,0.00017728,2]
[402204612,1768597843852,-9999.99,0.00017728,2]
[402204613,1768597843863,-9999.99,0.00017728,2]
[402204614,1768597843872,-150.0,0.00017749,2]
[402204615,1768597843881,-789.77249293,0.00017758,2]
[402204616,1768597843891,-1000.0,0.00017765,2]
[402204617,1768597843899,-500.0,0.00017775,2]
[402204618,1768597843908,-316.0,0.00017775,2]
[402204619,1768597843918,-500.0,0.00017775,2]
[402204620,1768597843927,-500.0,0.00017775,2]
[402204621,1768597843936,-500.0,0.00017775,2]
[402204622,1768597843946,-500.0,0.00017775,2]
[402204623,1768597843955,-500.0,0.00017775,2]
[402204624,1768597843964,-450.0,0.00017775,2]
[402204625,1768597843973,-500.0,0.00017775,2]
[402204626,1768597843982,-500.0,0.00017775,2]
[402204627,1768597843991,-1000.0,0.00017779,2]
[402204628,1768597844001,-150.0,0.00017786,2]
[402204629,1768597844011,-150.0,0.00017797,2]
[402204630,1768597844022,-1000.0,0.000178,2]
[402204631,1768597844031,-200.0,0.000178,6]
[402204632,1768597844041,-265.0,0.00017806,2]
[402204633,1768597844050,-213.0,0.00017806,2]
[402204634,1768597844060,-150.0,0.00017806,2]
[402204635,1768597844069,-200.0,0.00017806,2]
[402204636,1768597844078,-226.84,0.00017806,2]
[402204637,1768597844088,-194.531,0.00017806,2]
[402204638,1768597844098,-250.0,0.00017806,2]
[402204639,1768597844107,-150.0,0.00017806,2]
[402204640,1768597844116,-157.526,0.00017806,2]
[402204641,1768597844126,-250.0,0.00017806,2]
[402204642,1768597844135,-150.0,0.00017806,2]
[402204643,1768597844144,-151.0,0.00017806,2]
[402204644,1768597844154,-150.248,0.00017806,2]
[402204645,1768597844164,-614.0,0.00017806,2]
[402204646,1768597844173,-3471.0,0.00017806,2]
[402204647,1768597844183,-440.0,0.00017808,2]
[402204648,1768597844192,-2000.0,0.0001782,2]
[402204649,1768597844201,-2000.0,0.0001782,2]
[402204650,1768597844210,-504.0,0.0001783,2]
[402204651,1768597844219,-500.0,0.0001783,2]
[402204652,1768597844228,-500.0,0.0001783,2]
[402204653,1768597844238,-1365.9584212,0.00017839,14]
[402204654,1768597844248,-2409.71256722,0.00017839,14]
[402204655,1768597844257,-3604.78588512,0.00017839,14]
[402204656,1768597844267,-4877.4033,0.00017839,14]
[402204657,1768597844277,-736.0,0.00017854,2]
[402204658,1768597844286,-200.0,0.00017856,2]
[402204659,1768597844296,-440.0,0.00017863,2]
[402204660,1768597844306,-500.0,0.00017885,2]
[402204661,1768597844316,-500.0,0.00017885,2]
[402204662,1768597844330,-10000.0,0.00017886,2]
[402204663,1768597844340,-150.0,0.00017892,2]
[402204664,1768597844350,-171.5332109,0.000179,2]
[402204665,1768597844359,-288.99685012,0.000179,2]
[402204666,1768597844370,-200.0,0.000179,6]
[402204667,1768597844380,-1841.51928118,0.000179,2]
[402204668,1768597844390,-685.62030484,0.000179,2]
[402204669,1768597844401,-1694.33819335,0.000179,2]
[402204670,1768597844411,-2323.20577028,0.000179,2]
[402204671,1768597844421,-11111.21371389,0.000179,2]
[402204672,1768597844431,-150.0,0.00017914,2]
[402204673,1768597844441,-440.0,0.00017918,2]
[402204674,1768597844450,-249.0,0.00017938,2]
[402204675,1768597844459,-500.0,0.0001794,2]
[402204676,1768597844468,-500.0,0.0001794,2]
[402204677,1768597844477,-736.0,0.0001794,2]
[402204678,1768597844485,-289.0,0.00017949,2]
[402204679,1768597844495,-150.0,0.00017951,2]
[402204680,1768597844503,-150.0,0.00017953,2]
[402204681,1768597844513,-500.0,0.0001797,2]
[402204682,1768597844523,-700.0,0.0001797,2]
[402204683,1768597844533,-500.0,0.0001797,2]
[402204684,1768597844545,-700.0,0.0001797,2]
[402204685,1768597844555,-1100.0,0.0001797,2]
[402204686,1768597844565,-500.0,0.0001797,2]
[402204687,1768597844574,-500.0,0.0001797,2]
[402204688,1768597844584,-500.0,0.0001797,2]
[402204689,1768597844594,-500.0,0.0001797,2]
[402204690,1768597844603,-700.0,0.0001797,2]
[402204691,1768597844613,-1000.0,0.00017971,2]
[402204692,1768597844622,-1000.0,0.00017972,2]
[402204693,1768597844632,-440.0,0.00017972,2]
[402204694,1768597844642,-14603.0,0.00017973,2]
[402204695,1768597844651,-30478.0,0.00017973,2]
[402204696,1768597844660,-150.0,0.00017978,2]
[402204697,1768597844670,-150.0,0.00017989,2]
[402204698,1768597844679,-566.80876335,0.0001799,2]
[402204699,1768597844688,-566.80876335,0.0001799,2]
[402204700,1768597844698,-566.80876335,0.0001799,2]
[402204701,1768597844707,-500.0,0.00017995,2]
[402204702,1768597844717,-500.0,0.00017995,2]
[402204703,1768597844727,-151.0,0.00017997,2]
[402204704,1768597844736,-313.81295263,0.00017998,2]
[402204705,1768597844747,-250.11298687,0.00017998,2]
[402204706,1768597844757,-150.0,0.00017999,2]
[402204707,1768597844766,-176.82451653,0.00017999,2]
[402204708,1768597844775,-156.287,0.00017999,2]
[402204709,1768597844785,-1007.5651,0.00017999,2]
[402204710,1768597844794,-300.0,0.00017999,2]
[402204711,1768597844804,-300.0,0.00017999,2]
[402204712,1768597844813,-300.0,0.00017999,2]
[402204713,1768597844823,-666.0,0.00017999,2]
[402204714,1768597844832,-300.0,0.00017999,2]
[402204715,1768597844842,-300.0,0.00017999,2]
[402204716,1768597844851,-300.0,0.00017999,2]
[402204717,1768597844861,-666.0,0.00017999,2]
[402204718,1768597844870,-300.0,0.00017999,2]
[402204719,1768597844880,-300.0,0.00017999,2]
[402204720,1768597844889,-666.0,0.00017999,2]
[402204721,1768597844898,-13662.58833108,0.00017999,2]
[402204722,1768597844907,-211.81856156,0.00018,2]
[402204723,1768597844917,-1379738.82309373,0.00018,2]
[402204724,1768597844926,-150.0,0.00018,2]
[402204725,1768597844936,-186.07790631,0.00018,2]
[402204726,1768597844946,-4038685.02193776,0.00018,2]
[402204727,1768597845487,-324.598953,0.00014584,2]
[402204728,1768597845499,-1746.79255049,0.00014584,2]
[402204729,1768597845508,-2071.39150349,0.00014584,2]
[402204730,1768597845518,-2071.39150349,0.00014584,2]
[402204731,1768597845528,-2071.39150349,0.00014584,2]
[402204732,1768597845537,-448.57757008,0.0001654,2]
[402204733,1768597845547,-60394.56906725,0.00018,2]
[402204734,1768597845558,-719.78426776,0.00018,2]
[402204735,1768597845569,-295.60870062,0.00018,2]
[402204736,1768597845601,-39.5807979,0.00018,2]
[402204737,1768597845616,-55598.40684379,0.00018,2]
[402204741,1768597846535,-566.0,0.00017455,2]
[402204742,1768597846544,-1941.31881951,0.00018,2]
[402204743,1768597846597,-9648.02348496,0.00018,2]
[402204744,1768597846772,-458.57360228,0.00018,2]
[402204746,1768597855593,9524.578014,0.00014381,2]
[402204747,1768597855619,10000.01,0.00014381,2]
[402204748,1768597855646,10000.01,0.00014381,2]
[402204749,1768597855672,10000.01,0.00014381,2]
[402204750,1768597855698,10000.01,0.00014381,2]
[402204751,1768597855724,10000.01,0.00014381,2]
[402204752,1768597855752,10000.01,0.00014381,2]
[402204753,1768597855779,10000.01,0.00014381,2]
[402204754,1768597855806,10000.01,0.00014381,2]
[402204755,1768597855834,10000.01,0.00014381,2]
[402204756,1768597863133,-300.0,0.0001438,2]
[402204757,1768597866493,-9400.01,0.00014381,2]
[402204758,1768597866603,-10000.01,0.00014381,2]
[402204759,1768597866783,-10000.01,0.00014381,2]
[402204760,1768597866846,-10000.01,0.00014381,2]
[402204761,1768597866980,-10000.01,0.00014381,2]
[402204762,1768597867339,-10000.01,0.00014381,2]
[402204763,1768597869752,-10000.01,0.00014381,2]
[402204764,1768597869968,-10000.01,0.00014381,2]
[402204765,1768597894242,252.056,0.00014093,2]
[402204766,1768597894278,4036.442,0.00014093,2]
[402204767,1768597910008,833.445471,0.00014209,2]
[402204768,1768597960399,-358.76635387,0.00014281,2]
[402204769,1768598019736,-451.33295657,0.00014281,2]
[402204770,1768598046155,-1009.11331029,0.00014281,2]
[402204771,1768598046190,-3468.38165952,0.00014281,2]
[402204772,1768598046223,-518.61,0.000143,2]
[402204773,1768598046262,-300.0,0.00014379,2]
[402204774,1768598046297,-150.0,0.0001438,2]
[402204775,1768598046331,-300.0,0.0001438,2]
[402204776,1768598046366,-539.8745596,0.00014381,2]
[402204777,1768598046407,-673.44816896,0.00014381,2]
[402204778,1768598046420,-1009.11331029,0.00014381,2]
[402204779,1768598046436,-3468.38165952,0.00014381,2]
[402204780,1768598046448,-518.61,0.00014381,2]
[402204781,1768598046460,-300.0,0.00014381,2]
[402204782,1768598046562,-150.0,0.00014381,2]
[402204783,1768598046592,-300.0,0.00014381,2]
[402204784,1768598046604,-539.8745596,0.00014381,2]
[402204785,1768598046615,-8754.59277222,0.00014381,2]
[402204786,1768598047089,-259.03159536,0.00014381,2]
[402204787,1768598063520,-25300.0,0.00014381,2]
[402204788,1768598082989,167.01,0.00013699,2]
[402204789,1768598094796,-196.47073177,0.00014381,2]
[402204790,1768598096252,-322.97458823,0.00014381,2]
[402204791,1768598098217,-273.6419998,0.00014381,2]
[402204792,1768598107591,-173.15593603,0.0001438,2]
[402204793,1768598125700,-126.84406397,0.0001438,2]
[402204794,1768598125765,-1200.0,0.0001438,2]
[402204795,1768598125793,-300.0,0.0001438,2]
[402204796,1768598125821,-150.0,0.0001438,2]
[402204797,1768598125848,-300.0,0.0001438,2]
[402204798,1768598126181,-557.36840106,0.00014381,2]
[402204799,1768598126212,-10000.01,0.00014381,2]
[402204800,1768598126229,-10000.01,0.00014381,2]
[402204801,1768598126298,-10000.01,0.00014381,2]
[402204802,1768598126387,-10000.01,0.00014381,2]
[402204803,1768598126441,-10000.01,0.00014381,2]
[402204804,1768598126483,-10000.01,0.00014381,2]
[402204805,1768598126502,-10000.01,0.00014381,2]
[402204806,1768598127579,-267.93573343,0.00014381,2]
[402204807,1768598130729,-300.0,0.00014381,2]
[402204808,1768598131700,-10000.01,0.00014381,2]
[402204809,1768598131836,-10000.01,0.00014381,2]
[402204810,1768598132481,-481.1193947,0.00014381,2]
[402204811,1768598132538,-10000.01,0.00014381,2]
[402204812,1768598132556,-10000.01,0.00014381,2]
[402204813,1768598132590,-10000.01,0.00014381,2]
[402204814,1768598132964,-10000.01,0.00014381,2]
[402204815,1768598132985,-10000.01,0.00014381,2]
[402204816,1768598133002,-10000.01,0.00014381,2]
[402204817,1768598133732,-274.0,0.00014381,2]
[402204818,1768598214772,-162.03551096,0.00014281,2]
[402204819,1768598274713,-80.18128251,0.00014281,2]
[402204820,1768598274745,-174.07093183,0.000143,2]
[402204821,1768598276165,-161.17307281,0.000143,2]
[402204822,1768598278715,-249.66231831,0.000143,2]
[402204823,1768598280777,-408.65401964,0.000143,2]
[402204824,1768598284040,-408.69122734,0.000143,2]
[402204825,1768598286703,-231.82683937,0.000143,2]
[402204826,1768598288213,-188.75441492,0.000143,2]
[402204827,1768598292631,-250.0,0.000143,2]
[402204828,1768598304753,-175.18993183,0.000143,2]
[402204829,1768598306363,-435.18522633,0.000143,2]
[402204830,1768598409718,-300.0,0.0001428,2]
[402204831,1768598409743,-11.85425601,0.0001428,2]
[402204832,1768598439790,-161.10628558,0.0001428,2]
[402204833,1768598444532,-300.0,0.0001428,2]
[402204835,1768598494264,3782.473,0.00014093,2]
[402204836,1768598494299,241.015,0.00014093,2]
[402204837,1768598530201,-267.33818935,0.0001428,2]
[402204838,1768598534221,-163.71742833,0.0001428,2]
[402204839,1768598536497,-178.18123788,0.0001428,2]
[402204840,1768598538774,-117.80260285,0.0001428,2]
[402204841,1768598538795,-241.64895485,0.0001428,2]
[402204842,1768598541445,-32.35104515,0.0001428,2]
[402204843,1768598541473,-268.0,0.0001428,2]
[402204844,1768598541497,-150.0,0.0001428,2]
[402204845,1768598541525,-35.74803304,0.0001428,2]
[402204846,1768598543529,-159.77860431,0.0001428,2]
[402204847,1768598546572,-104.47336265,0.0001428,2]
[402204848,1768598546594,-101.98881467,0.00014281,2]
[402204849,1768598549873,-49.22169452,0.00014281,2]
[402204850,1768598549897,-276.20372059,0.00014281,2]
[402204851,1768598551458,-447.11468106,0.00014281,2]
[402204852,1768598553591,-163.2862865,0.00014281,2]
[402204853,1768598556877,-159.97026643,0.00014281,2]
[402204854,1768598559726,-184.46511752,0.00014281,2]
[402204855,1768598561999,-344.52155236,0.00014281,2]
[402204856,1768598564267,-416.54049403,0.00014281,2]
[402204857,1768598565789,-300.0,0.00014281,2]
[402204858,1768598567416,-307.46843179,0.00014281,2]
[402204859,1768598568902,-212.61091557,0.00014281,2]
[402204860,1768598570459,-309.3620277,0.00014281,2]
[402204861,1768598570481,-37.22578748,0.00014281,2]
[402204862,1768598573106,-441.03511844,0.00014281,2]
[402204863,1768598579260,-310.30064526,0.00014281,2]
[402204864,1768598580920,-395.97162281,0.00014281,2]
[402204865,1768598582433,-161.77021916,0.00014281,2]
[402204866,1768598586729,-158.08497831,0.00014281,2]
[402204867,1768598588133,-132.90298717,0.00014281,2]
[402204868,1768598588156,-250.0,0.00014281,2]
[402204869,1768598588179,-58.96639667,0.00014281,2]
[402204870,1768598589640,-254.01896374,0.00014281,2]
[402204871,1768598591769,-304.11165242,0.00014281,2]
[402204872,1768598598684,157.32,0.00013006,2]
[402204873,1768598620338,-264.99371674,0.0001428,2]
[402204874,1768598622364,-195.0,0.0001428,2]
[402204875,1768598625088,-159.99371674,0.0001428,2]
[402204876,1768598626807,-500.0,0.0001428,2]
[402204877,1768598628908,-80.01256652,0.0001428,2]
[402204878,1768598628929,-204.99371674,0.00014281,2]
[402204879,1768598736437,239.80559488,0.0001,2]
[402204880,1768598754609,5579.39640512,0.000136,2]
[402204881,1768598754635,10000.01,0.000136,2]
[402204882,1768598754665,10000.01,0.000136,2]
[402204883,1768598754691,4313.24737102,0.000136,2]
[402204884,1768598754818,-150.0,0.0001428,2]
[402204885,1768598754842,-136.28848714,0.0001428,2]
[402204886,1768598764812,166.66,0.00013709,2]
[402204887,1768598765044,166.66,0.00013997,2]
[402204888,1768598768153,-163.71151286,0.0001428,2]
[402204889,1768598768184,-1200.0,0.0001428,2]
[402204890,1768598768213,-1266.5968,0.0001428,2]
[402204891,1768598771837,-92.82600326,0.0001428,2]
[402204892,1768598771911,-10000.01,0.0001428,2]
[402204893,1768598772103,-3179.88689674,0.0001428,2]
[402204894,1768598772134,-1140.23620652,0.00014281,2]
[402204895,1768598772179,-1359.76379348,0.00014281,2]
[402204896,1768598774262,-166.66,0.00014286,2]
[402204897,1768598774290,-321.18898703,0.00014298,2]
[402204898,1768598774319,-500.0,0.00014298,2]
[402204899,1768598774352,-506.19681468,0.00014298,2]
[402204900,1768598774384,-506.19681468,0.00014298,2]
[402204901,1768598774414,-500.0,0.00014298,2]
[402204902,1768598774447,-506.19681468,0.00014298,2]
[402204903,1768598774477,-500.0,0.00014298,2]
[402204904,1768598774510,-506.19681468,0.00014298,2]
[402204905,1768598774543,-506.19681468,0.00014298,2]
[402204906,1768598774578,-456.14706446,0.00014298,2]
[402204907,1768598774861,-50.04975022,0.00014298,2]
[402204908,1768598777351,-2339.0468,0.00014281,2]
[402204909,1768598777383,-500.0,0.00014298,2]
[402204910,1768598777417,-506.19681468,0.00014298,2]
[402204911,1768598777451,-506.19681468,0.00014298,2]
[402204912,1768598777482,-480.37337768,0.00014298,2]
[402204913,1768598777516,-506.19681468,0.00014298,2]
[402204914,1768598777624,-506.19681468,0.00014298,2]
[402204915,1768598777661,-506.19681468,0.00014298,2]
[402204916,1768598777695,-506.19681468,0.00014298,2]
[402204917,1768598777730,-506.19681468,0.00014298,2]
[402204918,1768598777763,-506.19681468,0.00014298,2]
[402204919,1768598777795,-506.19681468,0.00014298,2]
[402204920,1768598777828,-506.19681468,0.00014298,2]
[402204921,1768598777861,-506.19681468,0.00014298,2]
[402204922,1768598777893,-506.19681468,0.00014298,2]
[402204923,1768598777925,-382.27052108,0.00014298,2]
[402204924,1768598778030,-123.9262936,0.00014298,2]
[402204925,1768598778062,-506.19681468,0.00014298,2]
[402204926,1768598778094,-506.19681468,0.00014298,2]
[402204927,1768598778126,-506.19681468,0.00014298,2]
[402204928,1768598778160,-506.19681468,0.00014298,2]
[402204929,1768598778194,-506.19681468,0.00014298,2]
[402204930,1768598778227,-506.19681468,0.00014298,2]
[402204931,1768598778260,-506.19681468,0.00014298,2]
[402204932,1768598778293,-506.19681468,0.00014298,2]
[402204933,1768598778324,-506.19681468,0.00014298,2]
[402204934,1768598778355,-134.41793388,0.00014298,2]
[402204935,1768598779119,-313.49711628,0.00014281,2]
[402204936,1768598779133,-506.19681468,0.00014281,2]
[402204937,1768598780640,-1989.69521328,0.00014281,2]
[402204938,1768598780675,-371.7788808,0.00014298,2]
[402204939,1768598780711,-506.19681468,0.00014298,2]
[402204940,1768598780744,-506.19681468,0.00014298,2]
[402204941,1768598780778,-506.19681468,0.00014298,2]
[402204942,1768598780811,-506.19681468,0.00014298,2]
[402204943,1768598780845,-506.19681468,0.00014298,2]
[402204944,1768598780990,-215.09366504,0.00014298,2]
[402204945,1768598832234,-150.0,0.00014297,2]
[402204946,1768598832263,-300.0,0.00014297,2]
[402204947,1768598832296,-291.10314964,0.00014298,2]
[402204948,1768598832329,-506.19681468,0.00014298,2]
[402204949,1768598832362,-506.19681468,0.00014298,2]
[402204950,1768598832395,-506.19681468,0.00014298,2]
[402204951,1768598832427,-506.19681468,0.00014298,2]
[402204952,1768598832461,-506.19681468,0.00014298,2]
[402204953,1768598832493,-506.19681468,0.00014298,2]
[402204954,1768598832525,-506.19681468,0.00014298,2]
[402204955,1768598832557,-506.19681468,0.00014298,2]
[402204956,1768598832876,-418.65466584,0.00014298,2]
[402204957,1768598832922,-87.54214884,0.00014298,2]
[402204958,1768598832956,-506.19681468,0.00014298,2]
[402204959,1768598832989,-506.19681468,0.00014298,2]
[402204960,1768598833021,-506.19681468,0.00014298,2]
[402204961,1768598833054,-506.19681468,0.00014298,2]
[402204962,1768598833088,-506.19681468,0.00014298,2]
[402204963,1768598833122,-506.19681468,0.00014298,2]
[402204964,1768598833155,-506.19681468,0.00014298,2]
[402204965,1768598833187,-506.19681468,0.00014298,2]
[402204966,1768598833226,-506.19681468,0.00014298,2]
[402204967,1768598833263,-207.1862234,0.00014298,2]
[402204968,1768598833545,-299.01059128,0.00014298,2]
[402204969,1768598833597,-506.19681468,0.00014298,2]
[402204970,1768598833645,-506.19681468,0.00014298,2]
[402204971,1768598833693,-699.87598973,0.00014298,2]
[402204972,1768598833737,-699.87598973,0.00014298,2]
[402204973,1768598833778,-699.87598973,0.00014298,2]
[402204974,1768598833823,-699.87598973,0.00014298,2]
[402204975,1768598833871,-699.87598973,0.00014298,2]
[402204976,1768598834040,-699.87598973,0.00014298,2]
[402204977,1768598834081,-699.87598973,0.00014298,2]
[402204978,1768598834124,-699.87598973,0.00014298,2]
[402204979,1768598834165,-699.87598973,0.00014298,2]
[402204980,1768598834208,-699.87598973,0.00014298,2]
[402204981,1768598834254,-699.87598973,0.00014298,2]
[402204982,1768598834300,-699.87598973,0.00014298,2]
[402204983,1768598835137,-699.87598973,0.00014298,2]
[402204984,1768598835177,-201.74614378,0.00014298,2]
[402204985,1768598837018,-498.12984595,0.00014298,2]
[402204986,1768598837051,-699.87598973,0.00014298,2]
[402204987,1768598837085,-699.87598973,0.00014298,2]
[402204988,1768598837117,-699.87598973,0.00014298,2]
[402204989,1768598837151,-699.87598973,0.00014298,2]
[402204990,1768598837184,-699.87598973,0.00014298,2]
[402204991,1768598837218,-699.87598973,0.00014298,2]
[402204992,1768598837335,-699.87598973,0.00014298,2]
[402204993,1768598837368,-699.87598973,0.00014298,2]
[402204994,1768598837399,-699.87598973,0.00014298,2]
[402204995,1768598837432,-699.87598973,0.00014298,2]
[402204996,1768598837466,-699.87598973,0.00014298,2]
[402204997,1768598837498,-699.87598973,0.00014298,2]
[402204998,1768598837531,-699.87598973,0.00014298,2]
[402204999,1768598837774,-605.23843134,0.00014298,2]
[402205000,1768598837789,-94.63755839,0.00014298,2]
[402205001,1768598837798,-107.10858539,0.00014298,2]
[402205002,1768598840095,-592.76740434,0.00014298,2]
[402205003,1768598840128,-699.87598977,0.00014298,2]
[402205004,1768598840164,-699.87598977,0.00014298,2]
[402205005,1768598840197,-500.0,0.00014299,2]
[402205006,1768598840375,-4037.31229128,0.000143,2]
[402205007,1768598840398,-977.65894096,0.000143,2]
[402205008,1768598840688,-947.72647648,0.000143,2]
[402205009,1768598840735,-5014.97123224,0.000143,2]
[402205010,1768598840795,-947.72647648,0.000143,2]
[402205011,1768598840855,-8104.55704704,0.000143,2]
[402205012,1768598865404,10000.01,0.00014181,2]
[402205013,1768598865434,10000.01,0.00014181,2]
[402205014,1768598865468,10000.01,0.00014181,2]
[402205015,1768598865509,10000.01,0.00014181,2]
[402205016,1768598865536,10000.01,0.00014181,2]
[402205017,1768598865563,10000.01,0.00014181,2]
[402205018,1768598865593,10000.01,0.00014181,2]
[402205019,1768598865623,10000.01,0.00014181,2]
[402205020,1768598865650,10000.01,0.00014181,2]
[402205021,1768598865679,10000.01,0.00014181,2]
[402205022,1768598874749,-186.26906812,0.00014,2]
[402205023,1768598875676,-289.84074202,0.00014,2]
[402205024,1768598878627,-9420.32851596,0.00014181,2]
[402205025,1768598878754,-10000.01,0.00014181,2]
[402205026,1768598878838,-10000.01,0.00014181,2]
[402205027,1768598878982,-10000.01,0.00014181,2]
[402205028,1768598879115,-10000.01,0.00014181,2]
[402205029,1768598879226,-10000.01,0.00014181,2]
[402205030,1768598879338,-10000.01,0.00014181,2]
[402205031,1768598879454,-10000.01,0.00014181,2]
[402205032,1768598879578,-10000.01,0.00014181,2]
[402205033,1768598881827,-300.0,0.0001418,2]
[402205034,1768598881866,-9400.01,0.00014181,2]
[402205035,1768598881929,-10000.01,0.00014181,2]
[402205036,1768598885976,-250.0,0.00014181,2]
[402205037,1768598886044,-9500.01,0.00014181,2]
[402205038,1768598888048,-10000.01,0.00014181,2]
[402205039,1768598888243,-10000.01,0.00014181,2]
[402205040,1768598891247,-212.74395336,0.000135,2]
[402205041,1768598891289,-9574.52209328,0.00014181,2]
[402205042,1768598891363,-10000.01,0.00014181,2]
[402205043,1768598942240,-164.0,0.00014,2]
[402205044,1768598942278,-736.044676,0.0001411,2]
[402205045,1768598942308,-867.0,0.0001418,2]
[402205046,1768598942339,-1867.15300534,0.0001418,2]
[402205047,1768598942431,-2731.61463732,0.00014181,2]
[402205048,1768598944564,-10000.01,0.00014181,2]
[402205049,1768598950795,-10000.01,0.00014181,2]
[402205050,1768598952642,200.0,0.000139,5]
[402205051,1768598963117,-3433.88756795,0.00014181,2]
[402205064,1768599031424,-260.53594415,0.00014081,2]
[402205065,1768599031433,-266.0,0.00014081,2]
[402205066,1768599031442,-139.33255241,0.00014095,2]
[402205067,1768599031483,-55.66744759,0.00014095,2]
[402205068,1768599031492,-7139.262564,0.0001411,2]
[402205069,1768599031502,-300.0,0.00014179,2]
[402205070,1768599031512,-1200.0,0.00014179,2]
[402205071,1768599031522,-300.0,0.00014179,2]
[402205072,1768599031532,-150.0,0.0001418,2]
[402205073,1768599031541,-245.70837177,0.0001418,2]
[402205074,1768599031550,-500.0,0.0001418,2]
[402205075,1768599031563,-162.5568872,0.0001418,2]
[402205076,1768599031572,-432.88296001,0.0001418,2]
[402205077,1768599031581,-500.0,0.0001418,2]
[402205078,1768599031591,-500.0,0.0001418,2]
[402205079,1768599031600,-211.2199035,0.0001418,2]
[402205080,1768599031609,-500.0,0.0001418,2]
[402205081,1768599031618,-275.59704197,0.0001418,2]
[402205082,1768599031628,-975.90482395,0.00014181,2]
[402205083,1768599031645,-2602.86816267,0.00014181,2]
[402205084,1768599031657,-1377.93241419,0.00014181,2]
[402205085,1768599031668,-1060.92531021,0.00014181,2]
[402205086,1768599031685,-2519.10982703,0.00014181,2]
[402205087,1768599031696,-487.0242411,0.00014181,2]
[402205088,1768599031708,-2488.79487899,0.00014181,2]
[402205089,1768599031722,-999.0,0.00014181,2]
[402205090,1768599031734,-4910.06818058,0.00014181,2]
[402205092,1768599031745,-300.0,0.00014181,2]